fUST/lending_fUST_20250426
["ID","MTS","AMOUNT","RATE_DAILY","PERIOD"]
[359030850,1745662238021,-500.0,0.00016712,2]
[359030852,1745662238031,-500.0,0.00016712,2]
[359030854,1745662238042,-1083.05,0.00016712,2]
[359030855,1745662238053,-1012.54,0.00016712,2]
[359030857,1745662238063,-500.0,0.00016712,2]
[359030859,1745662238072,-500.0,0.00016712,2]
[359030860,1745662238082,-512.63,0.00016712,2]
[359030862,1745662238093,-500.0,0.00016712,2]
[359030864,1745662238103,-500.0,0.00016712,2]
[359030866,1745662238112,-500.0,0.00016712,2]
[359030868,1745662238123,-1106.42,0.00016712,2]
[359030870,1745662238133,-500.0,0.00016712,2]
[359030872,1745662238143,-500.0,0.00016712,2]
[359030874,1745662238153,-500.0,0.00016712,2]
[359030876,1745662238163,-192.0,0.00016753,2]
[359030878,1745662238173,-164.3427952,0.00016829,2]
[359030880,1745662238182,-169.89735726,0.00016873,2]
[359030882,1745662238191,-2426.00485507,0.000169,2]
[359030884,1745662238201,-318.0053915,0.00016929,2]
[359030886,1745662238210,-174.266,0.00016933,2]
[359030888,1745662238219,-500.0,0.00016973,2]
[359030890,1745662238228,-619.41435268,0.00016973,2]
[359030891,1745662238238,-500.0,0.00016973,2]
[359030894,1745662238248,-500.0,0.00016973,2]
[359030895,1745662238258,-502.46609455,0.00016973,2]
[359030897,1745662238267,-500.0,0.00016973,2]
[359030899,1745662238276,-500.0,0.00016973,2]
[359030901,1745662238285,-500.0,0.00016973,2]
[359030903,1745662238296,-500.0,0.00016973,2]
[359030905,1745662238305,-500.0,0.00016973,2]
[359030907,1745662238315,-500.0,0.00016973,2]
[359030909,1745662238325,-500.0,0.00016973,2]
[359030911,1745662238335,-500.0,0.00016973,2]
[359030913,1745662238344,-500.0,0.00016973,2]
[359030915,1745662238354,-500.97232753,0.00016973,2]
[359030917,1745662238364,-502.32796341,0.00016973,2]
[359030919,1745662238374,-520.41237692,0.00016973,2]
[359030921,1745662238383,-500.0,0.00016973,2]
[359030923,1745662238392,-500.0,0.00016973,2]
[359030925,1745662238401,-500.0,0.00016973,2]
[359030927,1745662238410,-500.0,0.00016973,2]
[359030929,1745662238420,-500.0,0.00016973,2]
[359030931,1745662238431,-500.0,0.00016973,2]
[359030933,1745662238441,-151.0,0.00016973,2]
[359030935,1745662238450,-500.0,0.00016973,2]
[359030937,1745662238460,-500.0,0.00016973,2]
[359030938,1745662238469,-503.24190456,0.00016973,2]
[359030940,1745662238479,-500.0,0.00016973,2]
[359030942,1745662238489,-500.0,0.00016973,2]
[359030944,1745662238499,-500.0,0.00016973,2]
[359030946,1745662238508,-571.24126306,0.00016973,2]
[359030947,1745662238517,-500.0,0.00016973,2]
[359030950,1745662238538,-500.0,0.00016973,2]
[359030952,1745662238549,-500.0,0.00016973,2]
[359030954,1745662238559,-500.0,0.00016973,2]
[359030956,1745662238569,-500.0,0.00016973,2]
[359030958,1745662238579,-2936.41,0.00016984,2]
[359030960,1745662238588,-2936.41,0.00016985,2]
[359030962,1745662238598,-2936.41,0.00016985,2]
[359030964,1745662238608,-504.15224797,0.00016986,2]
[359030966,1745662238617,-557.27,0.00016986,2]
[359030968,1745662238627,-500.0,0.00016986,2]
[359030970,1745662238637,-213.2,0.00016986,2]
[359030971,1745662238647,-500.0,0.00016986,2]
[359030973,1745662238657,-500.0,0.00016986,2]
[359030975,1745662238667,-1129.05,0.00016986,2]
[359030977,1745662238678,-515.21,0.00016986,2]
[359030979,1745662238688,-500.0,0.00016986,2]
[359030981,1745662238699,-500.0,0.00016986,2]
[359030983,1745662238708,-500.0,0.00016986,2]
[359030985,1745662238719,-1047.09,0.00016986,2]
[359030987,1745662238730,-500.0,0.00016986,2]
[359030989,1745662238740,-500.0,0.00016986,2]
[359030991,1745662238749,-802.36,0.00016986,2]
[359030993,1745662238759,-711.2,0.00016986,2]
[359030995,1745662238770,-500.0,0.00016986,2]
[359030997,1745662238780,-500.0,0.00016986,2]
[359030999,1745662238789,-500.0,0.00016986,2]
[359031001,1745662238799,-1237.55,0.00016986,2]
[359031003,1745662238809,-500.0,0.00016986,2]
[359031005,1745662238818,-500.0,0.00016986,2]
[359031007,1745662238828,-500.0,0.00016986,2]
[359031009,1745662238837,-500.0,0.00016986,2]
[359031011,1745662238847,-1011.55,0.00016986,2]
[359031012,1745662238856,-500.0,0.00016986,2]
[359031014,1745662238866,-797.4,0.00016986,2]
[359031016,1745662238875,-431.53197206,0.00016986,2]
[359031018,1745662238884,-2771.31,0.00016986,2]
[359031020,1745662238894,-2723.02,0.00016986,2]
[359031022,1745662238903,-500.0,0.00016986,2]
[359031024,1745662238914,-500.0,0.00016986,2]
[359031026,1745662238923,-778.1,0.00016986,2]
[359031028,1745662238933,-500.0,0.00016986,2]
[359031029,1745662238942,-500.0,0.00016986,2]
[359031031,1745662238952,-642.51139234,0.00016986,2]
[359031033,1745662238961,-568.23,0.00016986,2]
[359031035,1745662238971,-808.78,0.00016986,2]
[359031037,1745662238983,-500.0,0.00016986,2]
[359031039,1745662238993,-500.0,0.00016986,2]
[359031041,1745662239002,-500.0,0.00016986,2]
[359031043,1745662239012,-707.96,0.00016986,2]
[359031045,1745662239023,-631.85820914,0.00016986,2]
[359031047,1745662239032,-500.0,0.00016986,2]
[359031070,1745662239266,-974.24,0.00016986,2]
[359031072,1745662239276,-500.0,0.00016986,2]
[359031074,1745662239286,-1134.52,0.00016986,2]
[359031076,1745662239296,-1665.92,0.00016986,2]
[359031077,1745662239306,-500.0,0.00016986,2]
[359031079,1745662239315,-500.0,0.00016986,2]
[359031081,1745662239325,-500.0,0.00016986,2]
[359031083,1745662239335,-500.0,0.00016986,2]
[359031085,1745662239345,-1004.54,0.00016986,2]
[359031087,1745662239354,-599.93678638,0.00016986,2]
[359031089,1745662239364,-500.0,0.00016986,2]
[359031091,1745662239373,-1264.3,0.00016986,2]
[359031092,1745662239383,-874.76,0.00016986,2]
[359031094,1745662239393,-500.0,0.00016986,2]
[359031096,1745662239402,-500.0,0.00016986,2]
[359031098,1745662239412,-500.0,0.00016986,2]
[359031100,1745662239422,-1083.05,0.00016986,2]
[359031102,1745662239431,-1012.54,0.00016986,2]
[359031104,1745662239441,-500.0,0.00016986,2]
[359031106,1745662239450,-500.0,0.00016986,2]
[359031108,1745662239460,-1106.42,0.00016986,2]
[359031110,1745662239470,-2936.41,0.00016998,2]
[359031111,1745662239480,-2936.41,0.00016998,2]
[359031113,1745662239490,-2936.41,0.00016998,2]
[359031115,1745662239500,-2936.41,0.00016998,2]
[359031117,1745662239510,-502.73462613,0.00016999,2]
[359031119,1745662239519,-504.97227826,0.00016999,2]
[359031121,1745662239529,-2936.41,0.00016999,2]
[359031123,1745662239539,-2936.41,0.00016999,2]
[359031125,1745662239550,-2936.41,0.00016999,2]
[359031127,1745662239560,-2936.41,0.00016999,2]
[359031129,1745662239570,-2936.51709236,0.00016999,2]
[359031131,1745662239580,-382537.37996812,0.00017,2]
[359031133,1745662239590,-1498.0,0.00017,2]
[359031136,1745662239600,-1271.0,0.00017,2]
[359031138,1745662239610,-522.0,0.00017,2]
[359031139,1745662239620,-1000.0,0.00017,2]
[359031141,1745662239631,-151.0,0.00017,2]
[359031143,1745662239640,-210.942219,0.00017,2]
[359031145,1745662239650,-151.0,0.00017,2]
[359031147,1745662239660,-151.0,0.00017,2]
[359031149,1745662239671,-151.0,0.00017,2]
[359031151,1745662239680,-152.780149,0.00017,2]
[359031153,1745662239690,-151.0,0.00017,2]
[359031155,1745662239703,-151.620432,0.00017,2]
[359031157,1745662239713,-1719.0,0.00017,2]
[359031159,1745662239723,-155.25546809,0.00017,2]
[359031161,1745662239733,-151.0,0.00017,2]
[359031163,1745662239743,-151.0,0.00017,2]
[359031165,1745662239753,-151.18692473,0.00017,2]
[359031167,1745662239764,-151.0,0.00017,2]
[359031169,1745662239774,-166.0,0.00017,2]
[359031171,1745662239784,-166.0,0.00017,2]
[359031173,1745662239795,-166.0,0.00017,2]
[359031175,1745662239804,-166.0,0.00017,2]
[359031177,1745662239814,-172.0,0.00017,2]
[359031179,1745662239824,-151.0,0.00017055,2]
[359031181,1745662239835,-151.0,0.00017055,2]
[359031183,1745662239844,-151.0,0.00017055,2]
[359031185,1745662239854,-420.0,0.00017089,2]
[359031186,1745662239863,-203.0,0.00017089,2]
[359031188,1745662239873,-420.0,0.00017089,2]
[359031190,1745662239882,-151.0,0.000171,2]
[359031192,1745662239892,-198.0,0.0001711,2]
[359031194,1745662239902,-200.91050708,0.0001711,2]
[359031196,1745662239912,-201.9363556,0.0001711,2]
[359031198,1745662239921,-1680.0,0.00017176,2]
[359031200,1745662239931,-800.0,0.000172,2]
[359031202,1745662239941,-151.0,0.000172,2]
[359031204,1745662239950,-151.0,0.000172,2]
[359031206,1745662239959,-151.0,0.000172,2]
[359031208,1745662239969,-500.0,0.0001726,2]
[359031210,1745662239982,-899.33,0.0001726,2]
[359031212,1745662239991,-500.0,0.0001726,2]
[359031214,1745662240000,-500.0,0.0001726,2]
[359031216,1745662240010,-500.0,0.0001726,2]
[359031218,1745662240019,-1129.05,0.0001726,2]
[359031220,1745662240029,-515.21,0.0001726,2]
[359031222,1745662240038,-500.0,0.0001726,2]
[359031224,1745662240047,-500.0,0.0001726,2]
[359031225,1745662240059,-500.0,0.0001726,2]
[359031227,1745662240068,-1047.09,0.0001726,2]
[359031229,1745662240078,-500.0,0.0001726,2]
[359031231,1745662240087,-500.0,0.0001726,2]
[359031233,1745662240097,-802.36,0.0001726,2]
[359031234,1745662240106,-711.2,0.0001726,2]
[359031236,1745662240117,-500.0,0.0001726,2]
[359031238,1745662240126,-500.0,0.0001726,2]
[359031240,1745662240135,-500.0,0.0001726,2]
[359031242,1745662240147,-1237.55,0.0001726,2]
[359031244,1745662240156,-500.0,0.0001726,2]
[359031246,1745662240165,-500.0,0.0001726,2]
[359031247,1745662240175,-500.0,0.0001726,2]
[359031249,1745662240184,-500.0,0.0001726,2]
[359031251,1745662240193,-1011.55,0.0001726,2]
[359031253,1745662240202,-500.0,0.0001726,2]
[359031255,1745662240212,-797.4,0.0001726,2]
[359031257,1745662240221,-2771.31,0.0001726,2]
[359031259,1745662240233,-2723.02,0.0001726,2]
[359031261,1745662240242,-305.88794402,0.0001726,2]
[359031263,1745662240252,-500.0,0.0001726,2]
[359031265,1745662240262,-778.1,0.0001726,2]
[359031267,1745662240272,-500.0,0.0001726,2]
[359031269,1745662240282,-500.0,0.0001726,2]
[359031271,1745662240292,-568.23,0.0001726,2]
[359031272,1745662240301,-808.78,0.0001726,2]
[359031274,1745662240311,-500.0,0.0001726,2]
[359031276,1745662240321,-500.0,0.0001726,2]
[359031278,1745662240330,-500.0,0.0001726,2]
[359031280,1745662240340,-707.96,0.0001726,2]
[359031282,1745662240349,-500.0,0.0001726,2]
[359031284,1745662240358,-974.24,0.0001726,2]
[359031286,1745662240368,-500.0,0.0001726,2]
[359031288,1745662240377,-1134.52,0.0001726,2]
[359031290,1745662240387,-1665.92,0.0001726,2]
[359031292,1745662240396,-500.0,0.0001726,2]
[359031294,1745662240407,-500.0,0.0001726,2]
[359031296,1745662240416,-500.0,0.0001726,2]
[359031297,1745662240425,-500.0,0.0001726,2]
[359031299,1745662240436,-1004.54,0.0001726,2]
[359031301,1745662240445,-500.0,0.0001726,2]
[359031303,1745662240455,-1264.3,0.0001726,2]
[359031305,1745662240465,-874.76,0.0001726,2]
[359031307,1745662240475,-500.0,0.0001726,2]
[359031309,1745662240485,-192.52199239,0.0001726,2]
[359031311,1745662240494,-500.0,0.0001726,2]
[359031313,1745662240504,-1083.05,0.0001726,2]
[359031315,1745662240514,-1012.54,0.0001726,2]
[359031317,1745662240523,-500.0,0.0001726,2]
[359031319,1745662240533,-500.0,0.0001726,2]
[359031321,1745662240543,-1106.42,0.0001726,2]
[359031323,1745662240553,-500.0,0.00017273,2]
[359031325,1745662240563,-500.0,0.00017273,2]
[359031327,1745662240572,-489.98509389,0.00017273,2]
[359031329,1745662240582,-500.0,0.00017273,2]
[359031331,1745662240605,-500.0,0.00017273,2]
[359031333,1745662240615,-500.0,0.00017273,2]
[359031335,1745662240626,-500.0,0.00017273,2]
[359031337,1745662240636,-518.34050831,0.00017273,2]
[359031339,1745662240646,-500.0,0.00017273,2]
[359031341,1745662240656,-500.0,0.00017273,2]
[359031343,1745662240666,-500.0,0.00017273,2]
[359031345,1745662240676,-500.0,0.00017273,2]
[359031347,1745662240686,-500.0,0.00017273,2]
[359031349,1745662240696,-500.0,0.00017273,2]
[359031351,1745662240707,-500.0,0.00017273,2]
[359031353,1745662240717,-500.0,0.00017273,2]
[359031355,1745662240727,-500.0,0.00017273,2]
[359031357,1745662240737,-33061.54395155,0.00017299,3]
[359032191,1745662782053,-2000.0,0.00019,30]
[359032192,1745662782095,-2000.0,0.0002,30]
[359032193,1745662807299,-2000.0,0.00019,15]
[359032194,1745662807332,-2000.0,0.00019,15]
[359032195,1745662807385,-160.0,0.00020654,10]
[359032196,1745662807423,-160.0,0.00020847,11]
[359032197,1745662807458,-2000.0,0.00021,60]
[359032202,1745663238116,-181.82054,0.00015092,2]
[359032203,1745663238138,-300.0,0.00015616,2]
[359032204,1745663238160,-108.03627104,0.00015616,2]
[359032205,1745663247091,-191.96372896,0.00015616,2]
[359032206,1745663247113,-1200.0,0.00015616,2]
[359032207,1745663247133,-270.0,0.00015616,2]
[359032208,1745663247156,-422.62487018,0.00015616,2]
[359032210,1745663279940,3838.0,0.00023,120]
[359032217,1745663350615,2637.52098104,0.00021,10]
[359032247,1745663431996,-300.0,0.00015614,2]
[359032250,1745663432006,-300.0,0.00015614,2]
[359032251,1745663432016,-1200.0,0.00015614,2]
[359032253,1745663432025,-500.0,0.00015615,2]
[359032255,1745663432034,-519.63761684,0.00015615,2]
[359032257,1745663432044,-500.0,0.00015615,2]
[359032259,1745663432054,-500.0,0.00015615,2]
[359032261,1745663432063,-500.0,0.00015615,2]
[359032263,1745663432072,-500.0,0.00015615,2]
[359032265,1745663432082,-500.0,0.00015615,2]
[359032267,1745663432092,-500.0,0.00015615,2]
[359032269,1745663432101,-500.0,0.00015615,2]
[359032271,1745663432111,-500.0,0.00015615,2]
[359032273,1745663432120,-500.0,0.00015615,2]
[359032275,1745663432130,-509.30622919,0.00015615,2]
[359032276,1745663432139,-500.0,0.00015615,2]
[359032278,1745663432149,-500.0,0.00015615,2]
[359032280,1745663432159,-500.0,0.00015615,2]
[359032282,1745663432168,-500.0,0.00015615,2]
[359032283,1745663432177,-500.0,0.00015615,2]
[359032284,1745663432187,-34909.87356453,0.00015615,2]
[359032285,1745663432196,-1342.62740082,0.00016064,2]
[359032286,1745663432206,-228.21447654,0.00016164,2]
[359032287,1745663432215,-160.0,0.00016367,2]
[359032288,1745663432225,-313.17372804,0.00016367,2]
[359032289,1745663432235,-207.4,0.00016428,2]
[359032290,1745663432244,-151.0,0.00016428,2]
[359032291,1745663432254,-160.0,0.00016435,2]
[359032292,1745663432263,-840.35238838,0.00016435,2]
[359032293,1745663432284,-421.06755229,0.00016435,2]
[359032294,1745663432296,-320.26882782,0.00016438,2]
[359032295,1745663432306,-500.0,0.00016438,2]
[359032296,1745663432316,-500.0,0.00016438,2]
[359032297,1745663432327,-507.08662482,0.00016438,2]
[359032298,1745663432338,-500.0,0.00016438,2]
[359032299,1745663432351,-515.29966395,0.00016438,2]
[359032300,1745663432361,-500.0,0.00016438,2]
[359032301,1745663432371,-500.0,0.00016438,2]
[359032302,1745663432381,-501.08960929,0.00016438,2]
[359032303,1745663432390,-500.0,0.00016438,2]
[359032304,1745663432400,-500.0,0.00016438,2]
[359032305,1745663432410,-500.0,0.00016438,2]
[359032306,1745663432422,-500.0,0.00016438,2]
[359032307,1745663432433,-500.0,0.00016438,2]
[359032308,1745663432446,-872.57,0.00016438,2]
[359032309,1745663432456,-500.0,0.00016438,2]
[359032310,1745663432466,-500.0,0.00016438,2]
[359032311,1745663432477,-500.72213027,0.00016438,2]
[359032312,1745663432487,-500.0,0.00016438,2]
[359032313,1745663432498,-500.0,0.00016438,2]
[359032314,1745663432508,-606.59,0.00016438,2]
[359032315,1745663432518,-500.0,0.00016438,2]
[359032316,1745663432528,-500.0,0.00016438,2]
[359032317,1745663432539,-663.79,0.00016438,2]
[359032318,1745663432550,-323.03585366,0.00016438,2]
[359032319,1745663432560,-500.0,0.00016438,2]
[359032320,1745663432571,-503.38816111,0.00016438,2]
[359032321,1745663432580,-500.0,0.00016438,2]
[359032322,1745663432591,-500.0,0.00016438,2]
[359032323,1745663432602,-726.01,0.00016438,2]
[359032324,1745663432613,-500.0,0.00016438,2]
[359032325,1745663432624,-1167.65,0.00016438,2]
[359032326,1745663432634,-500.0,0.00016438,2]
[359032327,1745663432645,-500.0,0.00016438,2]
[359032328,1745663432658,-500.0,0.00016438,2]
[359032329,1745663432896,-500.0,0.00016438,2]
[359032330,1745663432907,-500.0,0.00016438,2]
[359032331,1745663432919,-500.0,0.00016438,2]
[359032332,1745663432930,-500.0,0.00016438,2]
[359032333,1745663432942,-500.0,0.00016438,2]
[359032334,1745663432952,-511.28065844,0.00016438,2]
[359032335,1745663432961,-500.0,0.00016438,2]
[359032336,1745663432971,-922.01,0.00016438,2]
[359032337,1745663432982,-500.0,0.00016438,2]
[359032338,1745663432992,-506.19261283,0.00016438,2]
[359032339,1745663433003,-500.0,0.00016438,2]
[359032340,1745663433012,-500.0,0.00016438,2]
[359032341,1745663433022,-151.0,0.00016438,2]
[359032342,1745663433032,-500.0,0.00016438,2]
[359032343,1745663433041,-151.0,0.00016438,2]
[359032344,1745663433051,-517.92,0.00016438,2]
[359032345,1745663433060,-500.0,0.00016438,2]
[359032346,1745663433070,-500.0,0.00016438,2]
[359032347,1745663433080,-500.0,0.00016438,2]
[359032348,1745663433089,-500.0,0.00016438,2]
[359032349,1745663433099,-500.0,0.00016438,2]
[359032350,1745663433108,-664.5,0.00016438,2]
[359032351,1745663433118,-500.0,0.00016438,2]
[359032352,1745663433129,-500.0,0.00016438,2]
[359032353,1745663433139,-501.20362368,0.00016438,2]
[359032354,1745663433149,-582.89,0.00016438,2]
[359032355,1745663433159,-2730.57,0.00016438,2]
[359032356,1745663433170,-500.0,0.00016438,2]
[359032357,1745663433180,-500.0,0.00016438,2]
[359032358,1745663433190,-500.0,0.00016438,2]
[359032359,1745663433200,-500.0,0.00016438,2]
[359032360,1745663433210,-500.0,0.00016438,2]
[359032361,1745663433221,-500.0,0.00016438,2]
[359032362,1745663433230,-281.68515943,0.00016438,2]
[359032363,1745663433240,-500.0,0.00016438,2]
[359032364,1745663433249,-500.0,0.00016438,2]
[359032365,1745663433260,-500.0,0.00016438,2]
[359032366,1745663433271,-500.0,0.00016438,2]
[359032367,1745663433280,-500.0,0.00016438,2]
[359032368,1745663433290,-500.41639559,0.00016438,2]
[359032369,1745663433300,-500.0,0.00016438,2]
[359032370,1745663433310,-533.8,0.00016438,2]
[359032371,1745663433320,-500.0,0.00016438,2]
[359032372,1745663433330,-500.0,0.00016438,2]
[359032373,1745663433341,-694.17,0.00016438,2]
[359032374,1745663433352,-500.0,0.00016438,2]
[359032375,1745663433361,-500.0,0.00016438,2]
[359032376,1745663433371,-500.0,0.00016438,2]
[359032377,1745663433381,-151.0,0.00016438,2]
[359032378,1745663433392,-500.0,0.00016438,2]
[359032379,1745663433403,-500.0,0.00016438,2]
[359032380,1745663433413,-501.05130396,0.00016438,2]
[359032381,1745663433424,-500.0,0.00016438,2]
[359032382,1745663433434,-500.0,0.00016438,2]
[359032383,1745663433443,-486.52141878,0.00016438,2]
[359032384,1745663433454,-500.0,0.00016438,2]
[359032385,1745663433463,-2408.9,0.00016438,2]
[359032386,1745663433472,-153.04978055,0.00016438,2]
[359032387,1745663433482,-500.0,0.00016438,2]
[359032388,1745663433492,-500.0,0.00016438,2]
[359032389,1745663433503,-513.01,0.00016438,2]
[359032390,1745663433515,-151.0,0.00016438,2]
[359032391,1745663433525,-151.0,0.00016438,2]
[359032392,1745663433535,-500.0,0.00016438,2]
[359032393,1745663433544,-500.0,0.00016438,2]
[359032394,1745663433554,-500.0,0.00016438,2]
[359032395,1745663433564,-513.81,0.00016438,2]
[359032396,1745663433575,-500.0,0.00016438,2]
[359032397,1745663433585,-448.48399133,0.00016438,2]
[359032398,1745663433595,-500.0,0.00016438,2]
[359032399,1745663433605,-500.0,0.00016438,2]
[359032400,1745663433615,-500.0,0.00016438,2]
[359032401,1745663433625,-564.11,0.00016438,2]
[359032402,1745663433636,-500.0,0.00016438,2]
[359032403,1745663433646,-500.0,0.00016438,2]
[359032404,1745663433656,-500.0,0.00016438,2]
[359032405,1745663433666,-500.0,0.00016438,2]
[359032406,1745663433676,-500.0,0.00016438,2]
[359032407,1745663433686,-500.0,0.00016438,2]
[359032408,1745663433696,-500.0,0.00016438,2]
[359032409,1745663433705,-504.30444375,0.00016438,2]
[359032410,1745663433715,-500.0,0.00016438,2]
[359032411,1745663433725,-514.54,0.00016438,2]
[359032412,1745663433736,-500.0,0.00016438,2]
[359032413,1745663433746,-500.0,0.00016438,2]
[359032414,1745663433756,-500.0,0.00016438,2]
[359032415,1745663433767,-500.0,0.00016438,2]
[359032416,1745663433776,-500.0,0.00016438,2]
[359032417,1745663433786,-500.0,0.00016438,2]
[359032418,1745663433796,-500.0,0.00016438,2]
[359032419,1745663433806,-577.49,0.00016438,2]
[359032420,1745663433816,-500.0,0.00016438,2]
[359032421,1745663433826,-503.21154901,0.00016438,2]
[359032422,1745663433836,-500.0,0.00016438,2]
[359032423,1745663433846,-747.1,0.00016438,2]
[359032424,1745663433856,-500.0,0.00016438,2]
[359032425,1745663433865,-598.03,0.00016438,2]
[359032426,1745663433875,-500.0,0.00016438,2]
[359032427,1745663433885,-500.0,0.00016438,2]
[359032428,1745663433895,-505.35838646,0.00016438,2]
[359032429,1745663433904,-500.0,0.00016438,2]
[359032430,1745663433914,-500.0,0.00016438,2]
[359032431,1745663433924,-500.0,0.00016438,2]
[359032432,1745663433934,-504.10025304,0.00016438,2]
[359032433,1745663433944,-646.96,0.00016438,2]
[359032434,1745663433953,-500.0,0.00016438,2]
[359032435,1745663433964,-500.0,0.00016438,2]
[359032436,1745663433973,-500.0,0.00016438,2]
[359032437,1745663433983,-500.0,0.00016438,2]
[359032438,1745663433992,-500.0,0.00016438,2]
[359032439,1745663434002,-500.0,0.00016438,2]
[359032440,1745663434011,-888.49876399,0.00016438,2]
[359032441,1745663434021,-1684.7,0.00016438,2]
[359032442,1745663434031,-500.0,0.00016438,2]
[359032443,1745663434040,-500.0,0.00016438,2]
[359032444,1745663434050,-500.0,0.00016438,2]
[359032445,1745663434059,-1032.45,0.00016438,2]
[359032446,1745663434068,-500.0,0.00016438,2]
[359032447,1745663434079,-500.0,0.00016438,2]
[359032448,1745663434089,-500.0,0.00016438,2]
[359032449,1745663434099,-505.31088481,0.00016438,2]
[359032450,1745663434109,-509.0,0.00016438,2]
[359032451,1745663434119,-500.0,0.00016438,2]
[359032452,1745663434130,-500.0,0.00016438,2]
[359032453,1745663434139,-500.0,0.00016438,2]
[359032454,1745663434150,-546.89,0.00016438,2]
[359032455,1745663434160,-500.0,0.00016438,2]
[359032456,1745663434170,-500.0,0.00016438,2]
[359032457,1745663434179,-591.97,0.00016438,2]
[359032458,1745663434188,-500.0,0.00016438,2]
[359032459,1745663434198,-500.0,0.00016438,2]
[359032460,1745663434208,-500.0,0.00016438,2]
[359032461,1745663434217,-1029.8,0.00016438,2]
[359032462,1745663434227,-500.0,0.00016438,2]
[359032463,1745663434236,-500.0,0.00016438,2]
[359032464,1745663434247,-500.0,0.00016438,2]
[359032465,1745663434257,-500.0,0.00016438,2]
[359032466,1745663434266,-632.41,0.00016438,2]
[359032467,1745663434276,-517.26216003,0.00016438,2]
[359032468,1745663434286,-500.0,0.00016438,2]
[359032469,1745663434296,-500.0,0.00016438,2]
[359032470,1745663434306,-940.39,0.00016438,2]
[359032471,1745663434316,-500.0,0.00016438,2]
[359032472,1745663434325,-500.868303,0.00016438,2]
[359032473,1745663434336,-500.0,0.00016438,2]
[359032474,1745663434349,-500.0,0.00016438,2]
[359032475,1745663434359,-500.0,0.00016438,2]
[359032476,1745663434370,-500.0,0.00016438,2]
[359032477,1745663434380,-995.7,0.00016438,2]
[359032478,1745663434391,-510.81369818,0.00016438,2]
[359032479,1745663434401,-500.0,0.00016438,2]
[359032480,1745663434410,-500.0,0.00016438,2]
[359032481,1745663434422,-500.0,0.00016438,2]
[359032482,1745663434433,-500.0,0.00016438,2]
[359032483,1745663434445,-500.0,0.00016438,2]
[359032484,1745663434459,-500.0,0.00016438,2]
[359032485,1745663434474,-500.0,0.00016438,2]
[359032486,1745663434489,-500.0,0.00016438,2]
[359032487,1745663434504,-500.0,0.00016438,2]
[359032488,1745663434516,-292.88290146,0.00016438,2]
[359032489,1745663434528,-512.23534245,0.00016438,2]
[359032490,1745663434539,-500.0,0.00016438,2]
[359032491,1745663434552,-601.47,0.00016438,2]
[359032492,1745663434566,-1033.53,0.00016438,2]
[359032493,1745663434578,-500.0,0.00016438,2]
[359032494,1745663434592,-1238.31,0.00016438,2]
[359032495,1745663434605,-500.0,0.00016438,2]